bitfinex/quotes_SOLUSD_20250625
["timestamp","ask_amount","ask_price","bid_price","bid_amount"]
[1750837663613,5.43506798,147.39,147.34,12.2217777]
[1750837663822,5.43506798,147.38,147.34,6.78670972]
[1750837664021,5.43506798,147.38,147.34,12.2217777]
[1750837664513,5.43506798,147.35,147.33,6.02]
[1750837664718,5.43506798,147.34,147.33,6.02]
[1750837665398,5.43506798,147.35,147.33,6.02]
[1750837665908,5.43506798,147.35,147.33,12.80744795]
[1750837666097,5.43506798,147.36,147.33,12.80744795]
[1750837666611,5.43506798,147.37,147.33,12.80744795]
[1750837667204,5.43506798,147.37,147.33,18.24251593]
[1750837670419,5.43506798,147.38,147.33,18.24251593]
[1750837671208,5.43506798,147.38,147.35,6.7865626]
[1750837671604,5.43506798,147.38,147.34,6.78680874]
[1750837673705,5.43506798,147.38,147.34,12.22187672]
[1750837673904,5.43506798,147.38,147.34,6.78680874]
[1750837674203,5.43506798,147.38,147.34,12.22187672]
[1750837675113,5.43506798,147.38,147.34,6.78680874]
[1750837676414,12.22029104,147.38,147.33,18.24233134]
[1750837676728,5.43506798,147.37,147.33,18.24233134]
[1750837678737,5.43506798,147.38,147.33,18.24233134]
[1750837680226,12.22035907,147.38,147.33,18.24233134]
[1750837680841,5.43506798,147.38,147.33,18.24233134]
[1750837682338,5.43506798,147.37,147.33,6.02]
[1750837682542,5.43506798,147.36,147.33,6.02]
[1750837683240,5.43506798,147.37,147.33,12.8074792]
[1750837683719,5.43506798,147.37,147.33,18.24254718]
[1750837684335,12.22032398,147.38,147.33,18.24254718]
[1750837684742,6.785256,147.38,147.33,18.24254718]
[1750837684916,5.43506798,147.38,147.33,12.8074792]
[1750837685235,5.43506798,147.38,147.33,18.24254718]
[1750837686327,5.43506798,147.37,147.33,18.24254718]
[1750837687822,12.22080552,147.37,147.33,6.02]
[1750837688532,5.43506798,147.36,147.33,6.02]
[1750837689825,12.22121182,147.36,147.33,6.02]
[1750837690149,31.43506798,147.34,147.27,7.5494]
[1750837690342,5.43506798,147.31,147.27,6.02]
[1750837690726,5.43506798,147.31,147.23,7.9008]
[1750837690727,5.43506798,147.28,147.23,1.6293]
[1750837690942,5.43506798,147.27,147.23,5.43506798]
[1750837691828,5.43506798,147.27,147.23,12.22677166]
[1750837692544,5.43506798,147.26,147.23,6.79170368]
[1750837693650,5.43506798,147.24,147.21,6.79301677]
[1750837694949,5.43506798,147.23,147.2,12.81329331]
[1750837696631,5.43506798,147.22,147.2,12.81329331]
[1750837697039,5.43506798,147.22,147.2,6.02]
[1750837698038,5.43506798,147.22,147.2,12.81338705]
[1750837699449,39.06323421,147.24,147.19,6.79374717]
[1750837699657,5.43506798,147.22,147.19,6.79374717]
[1750837699828,5.43506798,147.27,147.21,7.06766798]
[1750837700033,1.5324,147.29,147.24,5.43506798]
[1750837700034,5.43506798,147.29,147.24,5.43506798]
[1750837700233,5.43506798,147.28,147.23,5.43506798]
[1750837701337,5.43506798,147.28,147.24,6.7916327]
[1750837701530,25.43810027,147.31,147.24,12.22670068]
[1750837701762,5.43506798,147.28,147.24,12.22670068]
[1750837708972,5.43506798,147.28,147.24,6.7916327]
[1750837711571,5.43506798,147.28,147.23,5.43506798]
[1750837712568,5.43506798,147.28,147.24,5.43506798]
[1750837713354,5.43506798,147.28,147.25,6.79117147]
[1750837715256,5.43506798,147.26,147.23,6.792094]
[1750837715447,5.43506798,147.25,147.23,6.792094]
[1750837715652,5.43506798,147.25,147.22,6.79237276]
[1750837717565,5.43506798,147.24,147.21,6.79283998]
[1750837717764,5.43506798,147.23,147.2,6.79331304]
[1750837717969,5.43506798,147.22,147.2,6.79331304]
[1750837718155,5.43506798,147.22,147.19,6.79379533]
[1750837719678,5.43506798,147.21,147.18,12.79421169]
[1750837720168,5.43506798,147.2,147.18,12.79421169]
[1750837720764,5.43506798,147.21,147.18,12.79421169]
[1750837721855,5.43506798,147.2,147.18,12.79421169]
[1750837722367,5.43506798,147.22,147.18,12.79421169]
[1750837723974,6.0859,147.26,147.18,12.79421169]
[1750837723975,5.43506798,147.23,147.18,35.2152832]
[1750837724172,5.43506798,147.26,147.21,5.43506798]
[1750837724357,5.43506798,147.27,147.23,5.43506798]
[1750837724562,5.43506798,147.28,147.23,5.43506798]
[1750837724761,5.43506798,147.27,147.23,5.43506798]
[1750837725375,5.43506798,147.27,147.24,6.7916327]
[1750837726153,5.43506798,147.28,147.24,6.7916327]
[1750837726359,5.43506798,147.28,147.24,12.22670068]
[1750837726867,5.43506798,147.29,147.24,12.22670068]
[1750837727656,5.43506798,147.28,147.24,12.22670068]
[1750837727981,5.43506798,147.28,147.24,6.7916327]
[1750837730287,5.43506798,147.28,147.23,13.831697]
[1750837730464,5.43506798,147.27,147.23,13.831697]
[1750837730781,5.43506798,147.28,147.23,13.831697]
[1750837732269,5.43506798,147.28,147.24,5.43506798]
[1750837732470,5.43506798,147.29,147.24,5.43506798]
[1750837733384,5.43506798,147.29,147.25,6.79117147]
[1750837735473,5.43506798,147.28,147.25,6.79117147]
[1750837735679,5.43506798,147.28,147.24,6.79143707]
[1750837736184,5.43506798,147.27,147.24,6.79143707]
[1750837738298,5.43506798,147.27,147.23,8.39687078]
[1750837738664,5.43506798,147.27,147.23,13.83193876]
[1750837738869,12.225409,147.27,147.23,7.03996798]
[1750837739392,12.225409,147.27,147.23,1.6049]
[1750837740192,12.225409,147.27,147.23,8.39697014]
[1750837740590,5.43506798,147.26,147.22,12.2272911]
[1750837740782,5.43506798,147.26,147.22,6.79222312]
[1750837742888,5.43506798,147.26,147.22,12.2272911]
[1750837745594,6.79034102,147.27,147.21,32.79273807]
[1750837745595,5.43506798,147.25,147.21,32.79273807]
[1750837745774,5.43506798,147.23,147.2,1.5833]
[1750837746175,5.43506798,147.21,147.18,12.79438003]
[1750837747101,5.43506798,147.22,147.18,12.79438003]
[1750837747587,5.43506798,147.21,147.18,12.79438003]
[1750837747790,5.43506798,147.22,147.18,18.22944801]
[1750837748201,5.43506798,147.25,147.2,5.43506798]
[1750837748880,5.43506798,147.24,147.2,5.43506798]
[1750837749198,5.43506798,147.23,147.2,6.79317109]
[1750837750900,5.43506798,147.24,147.2,6.79317109]
[1750837751397,5.43506798,147.23,147.2,6.79317109]
[1750837752098,5.43506798,147.23,147.19,6.79390212]
[1750837752499,5.43506798,147.23,147.19,12.2289701]
[1750837753810,5.43506798,147.24,147.19,12.2289701]
[1750837754310,5.43506798,147.26,147.21,31.43506798]
[1750837754916,5.43506798,147.25,147.21,31.43506798]
[1750837755714,5.43506798,147.25,147.21,38.22773818]
[1750837755916,5.43506798,147.26,147.21,38.22773818]
[1750837757419,5.43506798,147.25,147.21,38.22773818]
[1750837757915,5.43506798,147.25,147.21,32.7926702]
[1750837758219,5.43506798,147.26,147.21,38.22773818]
[1750837758520,5.43506798,147.26,147.22,5.43506798]
[1750837759220,5.43506798,147.26,147.22,12.22757844]
[1750837760221,5.43506798,147.26,147.22,6.79251046]
[1750837760517,5.43506798,147.23,147.15,12.23085459]
[1750837760700,5.43506798,147.2,147.15,6.79578661]
[1750837760906,5.43506798,147.21,147.15,38.23085459]
[1750837761422,12.22816811,147.21,147.15,38.23085459]
[1750837762732,12.22809,147.21,147.15,38.23085459]
[1750837763029,5.43506798,147.2,147.15,38.23085459]
[1750837765324,5.43506798,147.19,147.15,32.79578661]
[1750837767521,5.43506798,147.2,147.15,38.23085459]
[1750837767701,5.43506798,147.19,147.15,32.79578661]
[1750837771024,5.43506798,147.19,147.15,6.79578661]
[1750837774333,5.43506798,147.19,147.15,12.23085459]
[1750837775129,5.43506798,147.19,147.15,6.79578661]
[1750837775312,5.43506798,147.19,147.15,12.23085459]
[1750837775511,5.43506798,147.19,147.15,6.79578661]
[1750837775926,5.43506798,147.18,147.15,6.79578661]
[1750837776624,5.43506798,147.17,147.15,6.79578661]
[1750837777405,5.43506798,147.16,147.14,26.0]
[1750837777618,5.43506798,147.17,147.14,26.0]
[1750837778412,5.43506798,147.17,147.14,32.79607811]
[1750837782737,5.43506798,147.17,147.14,6.79607811]
[1750837782945,5.43506798,147.16,147.14,6.79607811]
[1750837784440,5.43506798,147.17,147.14,6.79607811]
[1750837786945,5.43506798,147.16,147.14,6.79607811]
[1750837787750,5.43506798,147.17,147.14,6.79607811]
[1750837788734,5.43506798,147.18,147.14,6.79607811]
[1750837789039,1.5076,147.24,147.16,5.43506798]
[1750837789245,5.43506798,147.21,147.16,5.43506798]
[1750837789629,5.43506798,147.2,147.15,5.43506798]
[1750837790253,5.43506798,147.21,147.16,5.43506798]
[1750837790951,5.43506798,147.21,147.17,6.79486308]
[1750837791145,5.43506798,147.22,147.17,12.22993106]
[1750837791454,5.43506798,147.22,147.18,5.43506798]
[1750837791652,5.43506798,147.23,147.18,5.43506798]
[1750837791824,5.43506798,147.23,147.17,23.78202078]
[1750837791825,5.43506798,147.25,147.2,5.43506798]
[1750837792024,6.0264,147.27,147.2,5.43506798]
[1750837792025,5.43506798,147.27,147.22,5.43506798]
[1750837792440,5.43506798,147.28,147.23,5.43506798]
[1750837792641,5.43506798,147.29,147.25,5.43506798]
[1750837792853,10.88326153,147.3,147.25,5.43506798]
[1750837792854,16.31832951,147.3,147.26,6.7907103]
[1750837793030,5.43506798,147.29,147.26,6.7907103]
[1750837793235,10.88326153,147.3,147.26,6.7907103]
[1750837793236,5.43506798,147.28,147.26,6.7907103]
[1750837794641,5.43506798,147.28,147.25,6.79117147]
[1750837797351,5.43506798,147.27,147.24,6.79148432]
[1750837799148,5.43506798,147.26,147.23,6.792094]
[1750837801751,5.43506798,147.26,147.22,12.22762333]
[1750837803753,5.43506798,147.26,147.22,6.79255535]
[1750837804445,5.43506798,147.26,147.22,12.22762333]
[1750837806337,5.43506798,147.26,147.22,6.79255535]
[1750837806536,5.43506798,147.25,147.22,6.79255535]
[1750837806839,36.88326153,147.3,147.22,6.79255535]
[1750837806840,10.88326153,147.3,147.24,5.43506798]
[1750837807032,10.88326153,147.3,147.23,27.5847]
[1750837807033,10.88326153,147.3,147.27,5.43506798]
[1750837807239,10.88326153,147.3,147.26,5.43506798]
[1750837807548,5.43506798,147.29,147.25,31.43506798]
[1750837808686,16.31832951,147.3,147.26,6.7907103]
[1750837809162,10.88326153,147.3,147.26,6.7907103]
[1750837809461,5.43506798,147.29,147.26,6.7907103]
[1750837810965,16.31832951,147.3,147.26,6.7907103]
[1750837812561,10.88326153,147.3,147.26,12.22577828]
[1750837812761,16.31832951,147.3,147.26,12.22577828]
[1750837813561,16.31832951,147.3,147.26,6.7907103]
[1750837814964,5.43506798,147.29,147.26,6.7907103]
[1750837817167,16.31832951,147.3,147.26,6.7907103]
[1750837818273,5.43506798,147.29,147.26,6.7907103]
[1750837820070,5.43506798,147.27,147.24,6.7916327]
[1750837820264,5.43506798,147.26,147.21,12.22808475]
[1750837820473,5.43506798,147.25,147.21,6.79301677]
[1750837820646,5.43506798,147.24,147.21,6.79301677]
[1750837821054,5.43506798,147.25,147.21,6.79301677]
[1750837824375,5.43506798,147.24,147.21,6.79301677]
[1750837825178,5.43506798,147.24,147.2,7.07396798]
[1750837825179,5.43506798,147.24,147.2,6.79328465]
[1750837826957,5.43506798,147.26,147.22,5.43506798]
[1750837827162,5.43506798,147.26,147.2,6.79328465]
[1750837827362,5.43506798,147.26,147.22,5.43506798]
[1750837827871,5.43506798,147.27,147.22,5.43506798]
[1750837828177,5.43506798,147.27,147.23,6.792094]
[1750837829987,5.43506798,147.26,147.23,6.792094]
[1750837830794,5.43506798,147.26,147.22,12.2274123]
[1750837830966,5.43506798,147.26,147.22,6.79234432]
[1750837831987,12.22587868,147.26,147.22,6.79234432]
[1750837832186,12.22587868,147.26,147.21,12.22797707]
[1750837832687,5.43506798,147.26,147.21,12.22797707]
[1750837834994,5.43506798,147.26,147.21,6.79290909]
[1750837835195,12.22589061,147.26,147.21,12.22797707]
[1750837837193,5.43506798,147.25,147.21,5.43506798]
[1750837839099,12.22656617,147.25,147.2,12.22835897]
[1750837844997,5.43506798,147.24,147.2,6.79329099]
[1750837845182,5.43506798,147.23,147.19,44.22883403]
[1750837845386,5.43506798,147.24,147.19,44.22883403]
[1750837846594,12.22670318,147.24,147.19,44.22883403]
[1750837847803,5.43506798,147.25,147.2,12.22839823]
[1750837848098,6.7907103,147.26,147.21,5.43506798]
[1750837848300,12.22577828,147.26,147.21,5.43506798]
[1750837848472,5.43506798,147.25,147.2,12.22839823]
[1750837850088,12.22634219,147.25,147.2,12.22839823]
[1750837851089,5.43506798,147.23,147.19,44.22883235]
[1750837851290,5.43506798,147.22,147.18,6.79419404]
[1750837851529,5.43506798,147.22,147.17,38.22970448]
[1750837852377,12.22789682,147.22,147.18,5.43506798]
[1750837852613,5.43506798,147.21,147.17,31.43506798]
[1750837852780,5.43506798,147.21,147.16,8.30182777]
[1750837852781,5.43506798,147.21,147.16,13.73689575]
[1750837852976,26.0,147.25,147.19,5.43506798]
[1750837853278,5.43506798,147.25,147.21,5.43506798]
[1750837853687,5.43506798,147.26,147.21,5.43506798]
[1750837854083,5.43506798,147.25,147.2,5.43506798]
[1750837854398,5.43506798,147.27,147.22,5.43506798]
[1750837854574,12.22515255,147.28,147.23,5.43506798]
[1750837855401,12.22515255,147.28,147.24,6.7916327]
[1750837855601,5.43506798,147.27,147.22,6.79255535]
[1750837855786,5.43506798,147.27,147.22,12.22762333]
[1750837859315,5.43506798,147.27,147.22,6.79255535]
[1750837859517,5.43506798,147.26,147.22,12.22762333]
[1750837859715,5.43506798,147.26,147.22,6.79255535]
[1750837859887,5.43506798,147.24,147.22,6.79255535]
[1750837861004,5.43506798,147.26,147.22,12.22762333]
[1750837861687,5.43506798,147.26,147.22,6.79255535]
[1750837864312,5.43506798,147.25,147.22,6.79255535]
[1750837864994,5.43506798,147.24,147.21,6.79291443]
[1750837866306,6.79163718,147.24,147.2,5.98]
[1750837866506,5.43506798,147.22,147.18,6.79440141]
[1750837866706,5.43506798,147.24,147.19,5.43506798]
[1750837867018,5.43506798,147.24,147.14,5.43506798]
[1750837867019,5.43506798,147.2,147.14,5.43506798]
[1750837867191,5.43506798,147.19,147.14,31.43506798]
[1750837868010,5.43506798,147.19,147.14,5.43506798]
[1750837868319,5.43506798,147.19,147.15,6.79578661]
[1750837870815,5.43506798,147.18,147.14,6.79624847]
[1750837871119,5.43506798,147.19,147.14,12.23131645]
[1750837872400,5.43506798,147.19,147.14,6.79624847]
[1750837872609,5.43506798,147.19,147.14,12.23131645]
[1750837872917,5.43506798,147.2,147.15,5.43506798]
[1750837873488,10.51309391,147.22,147.17,5.43506798]
[1750837873693,5.43506798,147.22,147.17,5.43506798]
[1750837874524,5.43506798,147.21,147.17,6.79472327]
[1750837875607,6.792094,147.23,147.17,6.79472327]
[1750837875810,5.43506798,147.21,147.17,12.22979125]
[1750837879301,5.43506798,147.21,147.17,6.79472327]
[1750837879715,5.43506798,147.21,147.17,12.22979125]
[1750837880926,5.43506798,147.22,147.17,12.22979125]
[1750837881614,5.43506798,147.21,147.17,12.22979125]
[1750837881798,5.43506798,147.21,147.17,6.79472327]
[1750837883228,5.43506798,147.22,147.17,12.22979125]
[1750837883920,5.43506798,147.21,147.17,6.79472327]
[1750837885129,5.43506798,147.19,147.16,6.79512388]
[1750837885315,6.79310269,147.21,147.16,6.79512388]
[1750837885316,5.43506798,147.2,147.16,6.79512388]
[1750837886114,12.22855438,147.2,147.16,6.79512388]
[1750837886621,5.43506798,147.2,147.16,6.79512388]
[1750837888514,12.22859245,147.2,147.15,12.23085459]
[1750837892525,6.79352447,147.2,147.15,12.23085459]
[1750837892734,12.22859245,147.2,147.15,12.23085459]
[1750837892919,5.43506798,147.19,147.15,5.43506798]
[1750837893237,6.79352447,147.2,147.14,12.23115473]
[1750837893238,5.43506798,147.18,147.14,12.23115473]
[1750837893417,5.43506798,147.19,147.14,12.23115473]
[1750837894325,12.22931172,147.19,147.14,12.23115473]
[1750837896336,12.22931172,147.19,147.13,5.96]
[1750837896337,6.79424374,147.19,147.15,12.23074971]
[1750837897024,6.79424374,147.19,147.15,6.79568173]
[1750837897326,12.22931172,147.19,147.14,12.23112356]
[1750837897738,5.43506798,147.18,147.13,18.19164591]
[1750837898118,6.79424374,147.19,147.12,34.45354124]
[1750837898119,5.43506798,147.17,147.12,34.45354124]
[1750837898318,12.22993123,147.17,147.12,39.88860922]
[1750837898620,5.43506798,147.17,147.12,39.88860922]
[1750837899026,12.22996951,147.17,147.12,34.45354124]
[1750837899338,12.22996951,147.17,147.12,39.88860922]
[1750837900214,5.43506798,147.14,147.1,12.75786451]
[1750837903258,12.23138062,147.14,147.1,5.96]
[1750837903539,5.43506798,147.12,147.08,1.5936]
[1750837903752,5.43506798,147.12,147.08,7.02866798]
[1750837905144,5.43506798,147.12,147.08,13.82747686]
[1750837906055,5.43506798,147.15,147.1,5.43506798]
[1750837906281,5.43506798,147.15,147.08,8.39240888]
[1750837906282,6.79453553,147.18,147.12,5.43506798]
[1750837906437,5.43506798,147.17,147.12,5.43506798]
[1750837908229,5.43506798,147.17,147.12,12.23183308]
[1750837908756,12.2299704,147.17,147.12,12.23183308]
[1750837909131,5.43506798,147.16,147.12,6.7967651]
[1750837909344,5.43506798,147.15,147.12,6.7967651]
[1750837909631,5.43506798,147.15,147.11,6.79751139]
[1750837909832,5.43506798,147.15,147.11,12.23257937]
[1750837910033,5.43506798,147.15,147.11,6.79751139]
[1750837910237,5.43506798,147.15,147.11,12.23257937]
[1750837910443,5.43506798,147.16,147.11,12.23257937]
[1750837911248,5.43506798,147.15,147.11,12.23257937]
[1750837912865,5.43506798,147.16,147.11,12.23257937]
[1750837914063,12.23042864,147.16,147.11,12.23257937]
[1750837914863,5.43506798,147.15,147.11,6.79751139]
[1750837915458,5.43506798,147.15,147.11,12.23257937]
[1750837917462,5.43506798,147.15,147.11,6.79751139]
[1750837917663,12.23042864,147.16,147.11,12.23257937]
[1750837919147,31.07047894,147.19,147.12,5.43506798]
[1750837919346,5.43506798,147.18,147.13,5.43506798]
[1750837919764,5.43506798,147.17,147.12,5.43506798]
[1750837920770,5.43506798,147.16,147.11,5.43506798]
[1750837922464,12.23056512,147.16,147.11,12.23240499]
[1750837922655,5.43506798,147.15,147.11,12.23240499]
[1750837922969,6.79549714,147.16,147.11,12.23240499]
[1750837923166,5.43506798,147.15,147.11,12.23240499]
[1750837923351,12.23056512,147.16,147.11,12.23240499]
[1750837925969,6.79549714,147.16,147.1,6.79809653]
[1750837926171,12.23056512,147.16,147.11,5.43506798]
[1750837927272,12.23056512,147.16,147.12,12.23224035]
[1750837927455,5.43506798,147.16,147.12,12.23224035]
[1750837927764,5.43506798,147.17,147.12,12.23224035]
[1750837929375,12.22994353,147.17,147.12,12.23224035]
[1750837929887,19.06954141,147.2,147.15,5.43506798]
[1750837930184,13.63447343,147.2,147.17,5.43506798]
[1750837930481,13.63447343,147.2,147.13,7.5318]
[1750837930482,20.42806839,147.2,147.13,7.5318]
[1750837930661,5.43506798,147.18,147.14,5.43506798]
[1750837931054,5.43506798,147.19,147.14,5.43506798]
[1750837931376,12.22925237,147.19,147.14,12.23111686]
[1750837931878,12.22925237,147.19,147.14,6.79604888]
[1750837932054,12.22925237,147.19,147.14,12.23111686]
[1750837936183,13.63447343,147.2,147.17,5.43506798]
[1750837936360,13.63447343,147.2,147.18,5.43506798]
[1750837936679,13.63447343,147.2,147.17,5.43506798]
[1750837938082,13.63447343,147.2,147.17,12.22968024]
[1750837939959,13.63447343,147.2,147.17,5.43506798]
[1750837940875,25.86303305,147.2,147.15,5.43506798]
[1750837941389,5.43506798,147.19,147.15,5.43506798]
[1750837942250,5.43506798,147.19,147.14,12.23131645]
[1750837942580,12.22905758,147.19,147.14,12.23131645]
[1750837942983,5.43506798,147.19,147.14,12.23131645]
[1750837943481,12.2290679,147.19,147.14,12.23131645]
[1750837945560,5.43506798,147.18,147.13,19.76334984]
[1750837945975,12.2290679,147.19,147.14,5.43506798]
[1750837946882,5.43506798,147.18,147.14,5.43506798]
[1750837947387,5.43506798,147.18,147.13,18.19154984]
[1750837947876,6.79399992,147.19,147.13,18.19154984]
[1750837947877,5.43506798,147.17,147.13,18.19154984]
[1750837948475,5.43506798,147.17,147.13,12.75648186]
[1750837948784,12.22998352,147.17,147.13,12.75648186]
[1750837950270,5.43506798,147.16,147.13,5.96]
[1750837950679,5.43506798,147.14,147.1,32.79792184]
[1750837950862,5.43506798,147.14,147.1,38.23298982]
[1750837952081,5.43506798,147.15,147.1,38.23298982]
[1750837953159,5.43506798,147.14,147.1,6.79792184]
[1750837953484,12.23099822,147.15,147.1,12.23298982]
[1750837954281,5.43506798,147.14,147.1,12.23298982]
[1750837954865,5.43506798,147.15,147.1,12.23298982]
[1750837955278,12.23100853,147.15,147.1,12.23298982]
[1750837955582,5.43506798,147.14,147.1,12.23298982]
[1750837956180,5.43506798,147.14,147.1,6.79792184]
[1750837957280,5.43506798,147.14,147.1,12.23298982]
[1750837957789,5.43506798,147.15,147.1,12.23298982]
[1750837957994,5.43506798,147.15,147.11,5.43506798]
[1750837958382,5.43506798,147.15,147.11,12.23240101]
[1750837959889,5.43506798,147.15,147.1,12.23316451]
[1750837961099,5.43506798,147.13,147.09,6.79842278]
[1750837961999,11.87133799,147.16,147.09,12.23349076]
[1750837962200,5.43506798,147.15,147.1,5.43506798]
[1750837963082,6.79460247,147.18,147.13,5.43506798]
[1750837963304,5.43506798,147.18,147.14,5.43506798]
[1750837963899,5.43506798,147.18,147.13,5.43506798]
[1750837964198,12.22992752,147.18,147.13,5.43506798]
[1750837964495,5.43506798,147.17,147.12,12.23184629]
[1750837965299,5.43506798,147.16,147.12,6.79677831]
[1750837965597,5.43506798,147.16,147.11,12.23262374]
[1750837966375,12.2305223,147.16,147.11,12.23262374]
[1750837967390,5.43506798,147.17,147.12,5.43506798]
[1750837967996,5.43506798,147.16,147.11,12.23262374]
[1750837968391,12.23055035,147.16,147.11,12.23262374]
[1750837969802,6.79548237,147.16,147.12,12.2320959]
[1750837970296,12.23055035,147.16,147.12,6.79702792]
[1750837971687,6.79486308,147.17,147.12,6.79702792]
[1750837971892,12.22993106,147.17,147.12,12.2320959]
[1750837973708,5.43506798,147.16,147.11,12.2327024]
[1750837974896,5.43506798,147.15,147.11,6.79763442]
[1750837975203,31.43506798,147.17,147.12,5.43506798]
[1750837975400,38.22994689,147.17,147.12,5.43506798]
[1750837975996,5.43506798,147.16,147.12,5.43506798]
[1750837976203,5.43506798,147.16,147.11,12.2327024]
[1750837979104,5.43506798,147.17,147.12,5.43506798]
[1750837980100,5.43506798,147.17,147.13,6.79671039]
[1750837982500,5.43506798,147.17,147.13,12.23177837]
[1750837982993,5.43506798,147.18,147.13,12.23177837]
[1750837983194,5.43506798,147.18,147.14,5.43506798]
[1750837984104,5.43506798,147.19,147.14,5.43506798]
[1750837984299,27.66668389,147.21,147.16,5.43506798]
[1750837984610,29.38225355,147.21,147.17,6.79486308]
[1750837985091,5.43506798,147.2,147.16,12.23020514]
[1750837985292,5.43506798,147.2,147.16,6.79513716]
[1750837986518,5.43506798,147.2,147.16,12.23020514]
[1750837987297,22.58917552,147.21,147.16,12.23020514]
[1750837988792,5.43506798,147.2,147.16,6.79513716]
[1750837991297,5.43506798,147.2,147.16,12.23020514]
[1750837991498,5.43506798,147.2,147.16,6.79513716]
[1750837993637,17.15410754,147.21,147.16,12.23020514]
[1750837993798,22.58917552,147.21,147.16,12.23020514]
[1750837993997,5.43506798,147.2,147.16,12.23020514]
[1750837995109,5.43506798,147.19,147.15,13.76203215]
[1750837996429,12.22903173,147.19,147.15,6.79556417]
[1750837996722,17.15410754,147.21,147.15,12.23063215]
[1750837996723,12.22876376,147.2,147.15,12.23063215]
[1750837997103,5.43506798,147.19,147.15,12.23063215]
[1750837999422,5.43506798,147.2,147.15,12.23063215]
[1750837999631,5.43506798,147.2,147.16,5.43506798]
[1750838000125,22.58917552,147.21,147.17,5.43506798]
[1750838001428,22.58917552,147.21,147.18,6.79440141]
[1750838002526,17.15410754,147.21,147.18,12.22946939]
[1750838006726,17.15410754,147.21,147.18,6.79440141]
[1750838006727,22.58917552,147.21,147.18,6.79440141]
[1750838007118,22.58917552,147.21,147.17,8.3410953]
[1750838007324,5.43506798,147.2,147.17,1.5464]
[1750838008615,12.22857795,147.2,147.17,1.5464]
[1750838013322,5.43506798,147.2,147.17,1.5464]
[1750838015035,5.43506798,147.19,147.15,6.79555583]
[1750838015435,12.22912086,147.19,147.15,6.79555583]
[1750838016150,5.43506798,147.19,147.15,12.23062381]
[1750838016439,12.22874318,147.2,147.15,12.23062381]
[1750838018528,12.22902669,147.19,147.15,12.23062381]
[1750838018722,12.22902669,147.19,147.15,6.79555583]
[1750838020054,17.15410754,147.21,147.16,5.43506798]
[1750838020342,5.43506798,147.2,147.15,12.23062381]
[1750838020714,17.15410754,147.21,147.14,1.6393]
[1750838020715,5.43506798,147.18,147.14,1.6393]
[1750838020919,5.43506798,147.18,147.1,8.32708665]
[1750838020920,5.43506798,147.15,147.1,8.32708665]
[1750838021138,5.43506798,147.13,147.1,1.529]
[1750838021321,5.43506798,147.12,147.08,38.29603434]
[1750838021516,5.43506798,147.12,147.08,32.03203434]
[1750838021940,5.43506798,147.11,147.08,25.2331175]
[1750838022145,12.23270448,147.11,147.08,25.2331175]
[1750838022325,3.4858642,147.1,147.08,5.94]
[1750838022847,3.4858642,147.1,147.08,12.73893929]
[1750838023619,3.4858642,147.1,147.08,6.79893929]
[1750838024241,5.44656757,147.1,147.07,6.79948323]
[1750838024627,5.44656757,147.11,147.07,6.79948323]
[1750838025332,5.44656757,147.11,147.07,12.2460508]
[1750838025937,18.64964886,147.15,147.09,5.44656757]
[1750838026165,5.44656757,147.14,147.1,6.79809653]
[1750838026721,5.44656757,147.15,147.11,5.44656757]
[1750838027751,5.44656757,147.15,147.12,6.79717237]
[1750838028740,5.44656757,147.16,147.12,6.79717237]
[1750838029654,5.44656757,147.16,147.12,12.24373994]
[1750838030845,31.44656757,147.18,147.13,5.44656757]
[1750838031440,31.44656757,147.18,147.14,5.44656757]
[1750838031744,5.44656757,147.18,147.14,12.24237628]
[1750838033057,5.44656757,147.18,147.13,5.44656757]
[1750838034132,5.44656757,147.18,147.14,6.79624847]
[1750838035860,5.44656757,147.18,147.14,5.44656757]
[1750838037366,5.44656757,147.18,147.14,12.24251526]
[1750838037555,5.44656757,147.16,147.12,12.24373994]
[1750838038137,5.44656757,147.15,147.12,6.79717237]
[1750838040169,26.0,147.18,147.12,12.24373994]
[1750838040341,31.44656757,147.18,147.13,5.44656757]
[1750838040547,31.44656757,147.18,147.12,6.79717237]
[1750838040746,5.44656757,147.17,147.12,12.24373994]
[1750838041938,31.44656757,147.17,147.12,12.24373994]
[1750838042141,5.44656757,147.16,147.12,12.24373994]
[1750838042651,5.44656757,147.16,147.12,6.79717237]
[1750838042853,5.44656757,147.16,147.12,12.24373994]
[1750838044941,5.44656757,147.15,147.12,6.79717237]
[1750838046251,6.79535887,147.16,147.1,11.36656757]
[1750838046468,5.44656757,147.14,147.1,11.36656757]
[1750838046851,5.44656757,147.14,147.1,5.92]
[1750838047065,5.44656757,147.14,147.1,12.71795682]
[1750838047363,5.44656757,147.15,147.1,18.16452439]
[1750838047769,12.24236268,147.15,147.1,12.71795682]
[1750838048062,5.44656757,147.14,147.1,18.16452439]
[1750838049670,5.44656757,147.14,147.1,12.71795682]
[1750838051169,5.44656757,147.14,147.1,18.16452439]
[1750838051565,5.44656757,147.14,147.1,12.71795682]
[1750838051770,5.44656757,147.14,147.1,18.16452439]
[1750838054770,5.44656757,147.14,147.1,12.71795682]
[1750838055681,5.44656757,147.13,147.1,12.71795682]